Cogmind - Beta 10.2 @@@ ROGUE MODE // 2021.11.05 @ 07:42:16 Player: dark Result: Destroyed by D-53 Grenadier with Mini Grenade Launcher Performance ------------- Evolutions (0) 0 Regions Visited (2) 400 Robots Destroyed (12) 60 Value Destroyed (338) 338 Prototype IDs (2) 40 Alien Tech Used (0) 0 Bonus (0) 0 TOTAL SCORE: 838 Bonus ------- None Cogmind --------- Core Integrity 0/250 Matter 285/300 Energy 65/100 System Corruption 0% Temperature Cool (1) Movement Hovering (120) Ox1 Location -10/Mines Parts ------- > --- POWER (1) -------- (None) > --- PROPULSION (2) --- Hover Unit > --- UTILITY (2) ------ Medium Storage Unit > --- WEAPON (2) ------- (None) > --- INVENTORY (8) ---- Improved Ion Engine Large Storage Unit Improved Sensor Array Signal Interpreter Utility Shielding Hacking Suite Peak State ------------ > --- POWER ------------ Improved Ion Engine > --- PROPULSION ------- Hover Unit Hover Unit > --- UTILITY ---------- Medium Storage Unit Improved Sensor Array > --- WEAPON ----------- EM Pulse Gun Medium Laser > --- INVENTORY -------- Improved Ion Engine Hover Unit Hover Unit Large Storage Unit Signal Interpreter Utility Shielding Hacking Suite Assault Rifle [Rating: 10] Favorites ----------- Power Improved Ion Engine Engine Improved Ion Engine Propulsion Light Treads Treads Light Treads Hover Unit Hover Unit Utility Medium Storage Unit Device Improved Sensor Array Storage Medium Storage Unit Weapon EM Pulse Gun Energy Gun EM Pulse Gun Build | -11 -10 -10 ------- Run | Scr Mat Min Slots Evolved . | . . . Power . | . . . Propulsion . | . . . Utility . | . . . Weapon . | . . . Parts Attached 15 | 6 6 3 Power 2 | 1 1 . Engine 2 | 1 1 . Core . | . . . Reactor . | . . . Propulsion 7 | 2 2 3 Treads 2 | 2 . . Leg . | . . . Wheel . | . . . Hover 5 | . 2 3 Flight . | . . . Utility 3 | 1 2 . Device 1 | . 1 . Storage 2 | 1 1 . Processor . | . . . Hackware . | . . . Protection . | . . . Artifact . | . . . Weapon 3 | 2 1 . Energy Gun 3 | 2 1 . Energy Cannon . | . . . Ballistic Gun . | . . . Ballistic Cannon . | . . . Launcher . | . . . Special Weapon . | . . . Impact Weapon . | . . . Slashing Weapon . | . . . Piercing Weapon . | . . . Special Melee Weapon . | . . . Unidentified Prototypes . | . . . Parts Lost 7 | . . 7 Power 1 | . . 1 Propulsion 4 | . . 4 Utility . | . . . Weapon 2 | . . 2 Highest Loss Streak 3 | . . 3 Average Slot Usage (%) 89 | . 98 68 Engine 12 | . 14 8 Treads 16 | . 23 . Hover 11 | . 3 27 Device 11 | . 13 8 Storage 14 | . 14 14 Energy Gun 22 | . 28 9 Naked Turns . | . . . Heaviest Build 20 | 12 20 20 Greatest Support 40 | 40 40 12 Greatest Overweight (x) 3 | 2 3 2 Average Overweight (x) . | . . . Largest Inventory Capacity 8 | 6 8 8 Average Capacity 7 | 5 7 8 Most Carried 8 | 4 8 8 Average Carried 5 | 2 5 7 Final Capacity 8 | 6 8 8 Final Carried 8 | 2 8 6 Class Distribution -------------------- 100% | Mutant Dominant Class ---------------- Mutant | -10/Materials Mutant | -10/Mines Resources | -11 -10 -10 ----------- Run | Scr Mat Min Matter Collected 316 | 240 71 5 Remotely . | . . . Salvage Created 484 | . 398 86 Parts 29 | . 24 5 Haulers Intercepted 1 | . 1 . Recyclers Shooed . | . . . Parts Field Recycled . | . . . Retrieved Matter . | . . . Parts Self-Destructed . | . . . Prevented . | . . . Kills | -11 -10 -10 ------- Run | Scr Mat Min Combat Hostiles Destroyed 8 | . 6 2 Melee 1 | . 1 . Guns 7 | . 5 2 Classes Destroyed 5 | . 5 . Hauler 1 | . 1 . Recycler 1 | . 1 . Operator 1 | . 1 . Watcher 1 | . 1 . Grunt 8 | . 6 2 Best Kill Streak 2 | . 2 2 Combat Bots Only 2 | . 2 2 Max Kills in Single Turn 1 | . 1 1 Gunslinging . | . . . Exploded . | . . . Melee 1 | . 1 . Uniques/NPCs Destroyed . | . . . Combat | -11 -10 -10 -------- Run | Scr Mat Min Damage Taken 726 | . 135 591 Core 290 | . 38 252 Absorbed by Shields . | . . . Core Remaining (%) 100 | 100 . . Volleys Fired 27 | . 17 10 Largest 2 | . 2 2 Hottest 90 | . 90 90 Shots Fired 50 | . 34 16 Gun 50 | . 34 16 Cannon . | . . . Launcher . | . . . Special . | . . . Kinetic . | . . . Thermal 23 | . 17 6 Explosive . | . . . Electromagnetic 27 | . 17 10 Robot Hit Streak 13 | . 13 3 Robot Miss Streak 3 | . 2 3 Penetration Max . | . . . Secondary Targets . | . . . Shots Hit Robots 36 | . 26 10 Core Hits 22 | . 17 5 Critical Hits . | . . . Critical Kills . | . . . Critical Parts Destroyed . | . . . Melee Attacks . | . . . Impact . | . . . Slashing . | . . . Piercing . | . . . Sneak Attacks . | . . . Combat Hostiles . | . . . Follow-up Attacks . | . . . Damage Inflicted 490 | . 369 121 Guns 468 | . 347 121 Cannons . | . . . Explosions . | . . . Melee . | . . . Ramming 22 | . 22 . Kinetic . | . . . Thermal 214 | . 176 38 Explosive . | . . . Electromagnetic 254 | . 171 83 Impact . | . . . Slashing . | . . . Piercing . | . . . Highest Corruption . | . . . Average Corruption . | . . . Corruption Purged . | . . . Overload Shots . | . . . Overflow Damage . | . . . Projectiles . | . . . Explosions . | . . . Melee . | . . . Knockbacks . | . . . Impact . | . . . Kinetic . | . . . Secondary . | . . . Self-Inflicted Damage . | . . . Shots . | . . . Rammed 7 | . 7 . Targets Rammed 8 | . 8 . Kicked . | . . . Crushed 1 | . 1 . Highest Temperature 315 | . 156 315 Average Temperature 89 | . 48 162 Received Heat Transfer 218 | . 75 143 Effects 1 | . . 1 Interference 1 | . . 1 Siege Activations . | . . . Robots Corrupted . | . . . Combat Hostiles . | . . . Parts Fried . | . . . Impact Corruptions . | . . . Robots Melted . | . . . Combat Hostiles . | . . . Parts Melted . | . . . Heat Transferred 629 | . 518 111 Parts Sabotaged . | . . . Parts Stolen . | . . . Parts Stripped . | . . . Power Chain Reactions . | . . . Missiles Intercepted . | . . . Alert | -11 -10 -10 ------- Run | Scr Mat Min Peak Influence 229 | . 229 102 Initial 32 | . . 32 Average 76 | . 84 72 Maximum Alert Level 1 | . 1 . Low Security (%) 85 | 100 77 100 Level 1 14 | . 22 . Level 2 . | . . . Level 3 . | . . . Level 4 . | . . . Level 5 . | . . . High Security . | . . . Max Security . | . . . Squads Dispatched 1 | . 1 . Investigation . | . . . Extermination . | . . . Reinforcement 1 | . 1 . Assault . | . . . Garrison . | . . . Intercept . | . . . Construction Impeded . | . . . Haulers Reinforced . | . . . Stealth | -11 -10 -10 --------- Run | Scr Mat Min Distress Signals . | . . . Communications Jammed . | . . . Distress Signals . | . . . Times Spotted 40 | . 18 22 Peak Tracking Total 12 | . 5 12 Tactical Retreats 4 | . 2 2 Traps | -11 -10 -10 ------- Run | Scr Mat Min Traps Triggered . | . . . Indirectly . | . . . Trap Hack Attempts . | . . . Triggered . | . . . Disarmed . | . . . Reprogrammed . | . . . Reused . | . . . Traps Extracted . | . . . Installed . | . . . Triggered . | . . . Machines | -11 -10 -10 ---------- Run | Scr Mat Min Machines Disabled . | . . . Max in Single Turn . | . . . Machines Sabotaged . | . . . Garrisons Compromised . | . . . Overloaded Fab Kills . | . . . Fab Network Shutdowns . | . . . Hacking | -11 -10 -10 --------- Run | Scr Mat Min Machines Accessed 4 | . 4 . Terminals 4 | . 4 . Fabricators . | . . . Repair Stations . | . . . Recycling Units . | . . . Scanalyzers . | . . . Garrison Access . | . . . Total Hacks 19 | . 19 . Successful 11 | . 11 . Failed 8 | . 8 . Catastrophic . | . . . Database Lockouts . | . . . Manual 13 | . 13 . Terminals 19 | . 19 . Fabricators . | . . . Repair Stations . | . . . Recycling Units . | . . . Scanalyzers . | . . . Garrison Access . | . . . Terminal Hacks 5 | . 5 . Prototype ID Bank 1 | . 1 . Branch Access Points 1 | . 1 . Terminal Index 1 | . 1 . Locate Traps 1 | . 1 . Hauler Manifests 1 | . 1 . Fabricator Hacks . | . . . Repair Station Hacks . | . . . Recycling Unit Hacks . | . . . Scanalyzer . | . . . Garrison Access Hacks . | . . . Unauthorized Hacks 6 | . 6 . Terminals 6 | . 6 . Track 1 | . 1 . Botnet 4 | . 4 . Operators 1 | . 1 . Fabricators . | . . . Repair Stations . | . . . Recycling Units . | . . . Scanalyzers . | . . . Garrison Access . | . . . Data Cores Recovered . | . . . Used . | . . . Hacking Detections 4 | . 4 . Full Trace Events . | . . . Feedback Events . | . . . Feedback Blocked . | . . . Robot Schematics Acquired . | . . . Robots Built . | . . . Matter . | . . . Time . | . . . Total Robot Build Rating . | . . . Part Schematics Acquired . | . . . Parts Built . | . . . Matter . | . . . Time . | . . . Total Part Build Rating . | . . . Parts Repaired . | . . . Time . | . . . Parts Recycled . | . . . Recycled Matter . | . . . Retrieved Matter . | . . . Retrieved Components . | . . . Parts Scanalyzed . | . . . Part Schematics Acquired . | . . . Parts Damaged . | . . . Bothacking | -11 -10 -10 ------------ Run | Scr Mat Min Used RIF Installer . | . . . Robots Hacked . | . . . Non-combat . | . . . Combat . | . . . Robot Hacks Applied . | . . . Relay Couplers Released . | . . . Robots Rewired . | . . . Allies Hacked . | . . . Hacks Repelled . | . . . Allies | -11 -10 -10 -------- Run | Scr Mat Min Total Allies . | . . . Largest Group . | . . . Highest-Rated Group . | . . . Highest-Rated Ally . | . . . Total Orders . | . . . Ally Attacks . | . . . Total Damage . | . . . Kills . | . . . Allies Corrupted . | . . . Allies Melted . | . . . Intel | -11 -10 -10 ------- Run | Scr Mat Min Robot Analysis Total . | . . . Derelict Logs Recovered 1 | . . 1 Drone Launches . | . . . Drone Recoveries . | . . . Exploration | -11 -10 -10 ------------- Run | Scr Mat Min Turns Passed 1261 | 64 834 363 Spaces Moved 782 | 36 416 330 Core 15 | 13 . 2 Treads 359 | 23 336 . Legs . | . . . Wheels . | . . . Hover 408 | . 80 328 Flight . | . . . Fastest Speed 50 | 50 116 56 Average Speed 121 | 128 152 82 Slowest Speed 240 | 160 240 150 Overloaded Moves . | . . . Propulsion Burnouts . | . . . Robots Hopped . | . . . Cave-ins Triggered . | . . . Exploration Rate (%) 38 | 3 58 54 Regions Visited 2 Branch Regions 1 Pre-discovered Areas . | . . . Known Exits Taken 1 | . 1 . Unknown Exits Taken 1 | 1 . . Scrap Searched 1 | . . 1 Spaces Dug . | . . . Terrain Destroyed . | . . . Melee . | . . . Projectile . | . . . AOE . | . . . Terrain Rammed . | . . . Walls Destroyed . | . . . Machines Disabled . | . . . Actions | -11 -10 -10 --------- Run | Scr Mat Min Total 1039 | 52 581 406 Wait 179 | 7 110 62 Move 780 | 35 415 330 Hop . | . . . Pick Up 20 | 4 16 . Fast Attach 4 | 4 . . Attach 10 | 2 5 3 Detach 1 | . . 1 Swap 1 | . 1 . Drop 9 | . 9 . Fire 27 | . 17 10 Melee . | . . . Ram . | . . . Kick . | . . . Crush 8 | . 8 . Escape Stasis . | . . . Rewire . | . . . Trap . | . . . Miscellaneous . | . . . Route ------- -11/Scrapyard -10/Materials (discovered 4 exits: [*Mat x2] / *Min x2) -10/Mines History --------- Turn | Location | Event 14 | -11/Scrapyard | Discovered new exit (range 16) 65 | -11/Scrapyard | Entered Materials 124 | -10/Materials | Identified exit to Mines 307 | -10/Materials | Build established: Mutant 415 | -10/Materials | Discovered new exit (range 7) 703 | -10/Materials | Discovered new exit (range 14) 899 | -10/Materials | Entered Mines 903 | -10/Mines | Learned 4 Materials zone layouts 1117 | -10/Mines | Assembled infested the area 1122 | -10/Mines | Assisted by a Guerilla fighting off Assembled 1142 | -10/Mines | Lost 3 parts (1p1n1w) 1254 | -10/Mines | Core integrity fell below 50% 1261 | -10/Mines | Core integrity fell below 20% 1262 | -10/Mines | Destroyed by D-53 Grenadier with Mini Grenade Launcher Last Messages --------------- as-35094 sneak attacks. T-07 Excavator system corrupted by crushing effect. T-07 Excavator knocked back. T-07 Excavator system terminally corrupted. Acquired 5 matter. Hover Unit destroyed. The unstable cave ceiling collapses. as-35734 destroyed. as-35094 destroyed. Hover Unit destroyed. The unstable cave ceiling collapses. as-93947 destroyed. as-89857 destroyed. as-07953 destroyed. R-06 Scavenger collects Flexi-carbon Leg. as-25215 destroyed. as-66864 destroyed. The unstable cave ceiling collapses. Hover Unit destroyed. D-53 Grenadier destroyed. Map ----- +----------------------------------------------------+ | ?????????????????????????????????????????????????? | | ?????????????????????????????????????????????????? | | ?????????????????????????????????????????????????? | | ?????????????????????????????????????????????????? | | ?????????????????????????????????????????????????? | | ?????????????????????????????????????????????????? | | ?????????????????????????????????????????????????? | | ?????????????????????????????????????????????????? | | ?????????????????????????????????????????????????? | | ?????????????????????????????????????????????????? | | ????????????????????????????????????????????###??? | | ????????????????????????????????????????????# #### | | ????????????????????????????????????????????# | | ????????????????????????????????????????????# #### | | ????????????????????????????????????????????###??? | | ?????????????????????????????????????????????????? | | ????????????????????????####?????????????????????? | | ????????????????????????# ?????????????????????? | | ???????????????????????? % #?????????????????????? | | ????????????????????????# #?????????????????????? | | ???????????????????????## #?????????????????????? | | ???????????????????????#;r #?????????????????????? | | ??????????????????????## %=####??????????????????? | | ??????????????????????# *! #??????????????????? | | ????????????????????### #??????????????????? | | ???????????????????## @ #??????????????????? | | ??????????????????## ##???????????#####?? | | ??????????????????# % #??????###### #?? | | ??????????????????# ##?????# ##? | | ?????????????????## d #?????# ## ## | | ?????????????????# #????# ### | | ?????????????????# ##????# #?# | | ?????????????????## ## ???## #### | | ??????????????????###?## ?## #### | | ???????????????????????# # ##### | | ???????????????????????# # | | ???????????????????????## % | | ????????????????????????# ###### | | ????????????????????????# ###?? | | ????????????????????????## ### | | ?????????????????????????# ! | | ?????????????????????????# =%= ### | | ?????????????????????????####* # ! ##?## ### | | ?????????????????????????# ## #*%= ##??# ##?## | | ?????????????????????????#### ## #### ##??# | | ????????????????????????????# ### ## #### | | ?????????????????????######## #?# | | ??????????????????#### ## #?# ### | | ???????????????#### !% ## #?## #?? | | ??????????????## != #??#### ##?# | +----------------------------------------------------+ Best States ------------- Heat Dissipation 25 Energy Generation 12 Energy Capacity 265 Matter Stores 300 Matter Capacity 300 Sight Range 16 Robot Scan Range 13 Terrain Scan Density 10 Evasion (%) 53 Recoil Reduction 2 Item Schematics ----------------- None Robot Schematics ------------------ None Fabricated ------------ Nothing Alien Tech Used ----------------- None Achievements -------------- Slippery One Challenges ------------ None Game ------ Seed CoolingWardroneBox Manual? 0 Play Time 00:17:02 Cumulative 86.8 hours Start 2021.11.05 @ 07:28:53 End 2021.11.05 @ 07:42:16 Sessions 1 Manual Loads 0 Difficulty Rogue Special Mode None Game No. 126 Rogue 92 Adventurer 11 Explorer 23 Win Type - Total 0 Types 0/0/0/0/0/0/0/0/0 Lore% 42 Gallery% 63 Achievement% 37 Wizard Run 0 Options --------- ASCII 0 Keyboard 0 Movement Numpad Keybinds 0 Fullscreen 2 Font 18/SmallcapsGlow Map View 76x50 Tactical HUD 0 Map Filters NONE Filters NONE Steam 1 RUN: 3d17ed95-1747-414f-b114-3336d866ace4